fUSD/lending_fUSD_20240707
["ID","MTS","AMOUNT","RATE_DAILY","PERIOD"]
[331414967,1720362642412,-543.67207955,0.000139,2]
[331414970,1720362642423,-443.6594,0.000139,2]
[331414972,1720362642433,-222.6918,0.000139,2]
[331414975,1720362642443,-677.83885888,0.000139,2]
[331414978,1720362642456,-227.62554112,0.000139,2]
[331414981,1720362642466,-178.84362492,0.000139,2]
[331414986,1720362642478,-605.61078592,0.000139,2]
[331414989,1720362642491,-835.77,0.000139,2]
[331415111,1720362645011,-473.66081981,0.000139,2]
[331415114,1720362646719,-741.32076935,0.000139,2]
[331415115,1720362646729,-166.70390502,0.000139,2]
[331415116,1720362646739,-45.7004087,0.000139,2]
[331415117,1720362646933,-1045.91,0.000139,2]
[331415118,1720362646943,-448.36497542,0.000139,2]
[331415119,1720362646953,-176.38240174,0.000139,2]
[331415120,1720362647022,-144.9405804,0.000139,2]
[331415121,1720362647037,-522.01340608,0.000139,2]
[331415122,1720362647046,-661.9824573,0.000139,2]
[331415123,1720362647058,-322.14623267,0.000139,2]
[331415124,1720362647067,-290.47732355,0.00013937,2]
[331415125,1720362647079,-9.52267645,0.00013937,2]
[331415126,1720362647089,-558.17732355,0.0001396,2]
[331415127,1720362647100,-550.18428788,0.0001396,2]
[331415128,1720362647112,-765.67486631,0.0001396,2]
[331415129,1720362647124,-324.95834368,0.0001396,2]
[331415130,1720362682011,213.01552815,0.00026,120]
[331415131,1720362822016,270.47859876,0.00011199,2]
[331415132,1720362822067,3356.57295982,0.00011199,2]
[331415133,1720362822183,3329.517403,0.00011199,2]
[331415134,1720362823326,11.25364204,0.00011199,2]
[331415135,1720362823370,3516.1217356,0.00011199,2]
[331415136,1720362823400,19012.97338967,0.00011199,2]
[331415137,1720362823427,5886.69777992,0.00011199,2]
[331415138,1720362832717,2375.7192167,0.00011199,2]
[331415139,1720362842000,827.52356706,0.00011199,2]
[331415140,1720362847165,4108.70206381,0.00011199,2]
[331415141,1720362857703,1419.41854678,0.00011199,2]
[331415142,1720362872196,1816.88391842,0.00011199,2]
[331415143,1720362874154,2558.47984956,0.00011199,2]
[331415144,1720362874265,1006.57505775,0.00011199,2]
[331415145,1720362874305,314.68661154,0.00011199,2]
[331415146,1720362876267,1903.65279599,0.00011199,2]
[331415147,1720362878159,797.26942546,0.00011199,2]
[331415150,1720362882387,9699.63398023,0.00011199,2]
[331415151,1720362886018,781.51175288,0.00011199,2]
[331415152,1720362891777,1335.45863739,0.00011199,2]
[331415154,1720362916146,650.62767663,0.00011199,2]
[331415157,1720362928170,627.27317278,0.00011199,2]
[331415158,1720362939735,193.62934922,0.00011199,2]
[331415159,1720362943890,519.92895896,0.00011199,2]
[331415160,1720362956529,315.96457783,0.00011199,2]
[331415162,1720362970851,181.21410071,0.00011199,2]
[331415163,1720362975158,2558.47984956,0.00011199,2]
[331415164,1720362976386,120.66911082,0.00011199,2]
[331415165,1720362976455,14633.39709213,0.00011199,2]
[331415169,1720362989089,155.0,0.00011199,2]
[331415172,1720363014450,174.15,0.00010196,2]
[331415173,1720363019894,242.03254915,0.00011199,2]
[331415175,1720363094155,2558.47984956,0.00011199,2]
[331415176,1720363108165,2236.94050916,0.00011199,2]
[331415177,1720363108191,321.5393404,0.00011199,2]
[331415178,1720363140556,462.07,0.0001081,2]
[331415179,1720363147072,3075.09742481,0.00011199,2]
[331415180,1720363169011,1112.14015136,0.00011199,2]
[331415181,1720363176629,1265.01058332,0.00011199,2]
[331415182,1720363208190,1014.21710702,0.00011199,2]
[331415183,1720363224709,2558.47984956,0.00011199,2]
[331415184,1720363251731,2605.3,0.00011199,2]
[331415185,1720363282009,155.05832956,0.00011199,2]
[331415186,1720363306779,756.75737183,0.00011199,2]
[331415187,1720363319023,1500.0,0.00011199,2]
[331415188,1720363321333,348.66825616,0.00011199,2]
[331415189,1720363327276,411.84991171,0.00011199,2]
[331415190,1720363333186,2558.47984956,0.00011199,2]
[331415192,1720363356823,1855.33182471,0.00011199,2]
[331415193,1720363356855,8683.50688201,0.00011199,2]
[331415194,1720363357597,263.4402613,0.00011199,2]
[331415195,1720363357994,315.96457783,0.00011199,2]
[331415196,1720363365205,627.27317278,0.00011199,2]
[331415197,1720363368299,960.15778522,0.00011199,2]
[331415198,1720363368350,272.99327556,0.00011199,2]
[331415199,1720363368504,155.0,0.00011199,2]
[331415200,1720363372986,201.8882825,0.00011199,2]
[331415201,1720363382196,246.74599014,0.00011199,2]
[331415202,1720363388923,227.22563372,0.00011199,2]
[331415203,1720363420072,348.66825616,0.00011199,2]
[331415204,1720363423515,260.6444492,0.00011199,2]
[331415205,1720363426384,356.38582122,0.00011199,2]
[331415206,1720363437279,411.68641525,0.00011199,2]
[331415207,1720363439244,2558.47984956,0.00011199,2]
[331415208,1720363446993,155.10604314,0.00011199,2]
[331415210,1720363456998,579.91146984,0.00011199,2]
[331415211,1720363458317,960.15778522,0.00011199,2]
[331415212,1720363469598,150.0,0.00011199,2]
[331415213,1720363469622,255.03,0.00011199,2]
[331415214,1720363469645,2153.44984956,0.00011199,2]
[331415215,1720363481713,218.18052413,0.00011199,2]
[331415216,1720363498860,43.13367566,0.00011199,2]
[331415217,1720363498884,305.5345805,0.00011199,2]
[331415218,1720363507199,179.93638012,0.00011199,2]
[331415219,1720363521700,160.27013735,0.00011199,2]
[331415220,1720363523589,1146.8800844,0.00011199,2]
[331415221,1720363557918,150.13996471,0.00011032,2]
[331415222,1720363569150,1135.26906695,0.00011199,2]
[331415224,1720363572258,4462.6832468,0.00011199,2]
[331415226,1720363581548,5414.93463371,0.00011199,2]
[331415227,1720363587214,2558.47984956,0.00011199,2]
[331415228,1720363587912,960.15778522,0.00011199,2]
[331415229,1720363597963,1135.26906695,0.00011199,2]
[331415230,1720363602196,2390.44520373,0.00011199,2]
[331415231,1720363602224,168.03464583,0.00011199,2]
[331415233,1720363606700,348.7364024,0.00011199,2]
[331415234,1720363608658,150.0,0.00011199,2]
[331415235,1720363608735,150.0,0.00011199,2]
[331415236,1720363608893,150.0,0.00011199,2]
[331415237,1720363609060,150.0,0.00011199,2]
[331415238,1720363609087,150.0,0.00011199,2]
[331415239,1720363609116,150.0,0.00011199,2]
[331415240,1720363609145,44.91389166,0.00011199,2]
[331415243,1720363631590,3075.09742481,0.00011199,2]
[331415244,1720363631872,626.09548274,0.00011199,2]
[331415246,1720363643932,150.0,0.00011199,2]
[331415247,1720363643961,5.13954738,0.00011199,2]
[331415248,1720363644542,144.86045262,0.00011199,2]
[331415249,1720363644566,150.0,0.00011199,2]
[331415250,1720363644590,150.0,0.00011199,2]
[331415251,1720363644616,150.0,0.00011199,2]
[331415252,1720363644645,150.0,0.00011199,2]
[331415253,1720363644670,150.0,0.00011199,2]
[331415254,1720363644716,150.0,0.00011199,2]
[331415255,1720363644842,150.0,0.00011199,2]
[331415256,1720363644870,166.56642448,0.00011199,2]
[331415257,1720363644898,2033.55274056,0.00011199,2]
[331415258,1720363649448,150.0,0.00011199,2]
[331415259,1720363649471,150.0,0.00011199,2]
[331415260,1720363649494,150.0,0.00011199,2]
[331415261,1720363649517,150.0,0.00011199,2]
[331415262,1720363649538,150.0,0.00011199,2]
[331415263,1720363649560,150.0,0.00011199,2]
[331415264,1720363649581,150.0,0.00011199,2]
[331415265,1720363649607,4747.11331304,0.00011199,2]
[331415266,1720363652288,150.0,0.00011199,2]
[331415267,1720363652368,5.0,0.00011199,2]
[331415268,1720363653606,150.0,0.00011199,2]
[331415269,1720363653642,150.0,0.00011199,2]
[331415270,1720363653665,150.0,0.00011199,2]
[331415271,1720363653689,102.51494431,0.00011199,2]
[331415272,1720363665060,206.31631327,0.00011199,2]
[331415273,1720363665312,19833.87112132,0.00011199,2]
[331415274,1720363672318,150.0,0.00011199,2]
[331415275,1720363672341,150.0,0.00011199,2]
[331415276,1720363672363,150.0,0.00011199,2]
[331415277,1720363672385,150.0,0.00011199,2]
[331415278,1720363672410,150.0,0.00011199,2]
[331415279,1720363672434,150.0,0.00011199,2]
[331415280,1720363672456,60.15778522,0.00011199,2]
[331415282,1720363688338,150.0,0.00011199,2]
[331415283,1720363688365,5.534071,0.00011199,2]
[331415285,1720363693124,150.0,0.00011199,2]
[331415286,1720363693146,50.16283357,0.00011199,2]
[331415287,1720363705861,99.83716643,0.00011199,2]
[331415288,1720363705886,150.0,0.00011199,2]
[331415289,1720363705911,150.0,0.00011199,2]
[331415290,1720363705936,292.45714013,0.00011199,2]
[331415291,1720363705967,1866.185543,0.00011199,2]
[331415292,1720363708500,756.75737183,0.00011199,2]
[331415293,1720363708792,205.4353331,0.00011199,2]
[331415294,1720363712250,150.0,0.00011199,2]
[331415295,1720363712286,198.7364024,0.00011199,2]
[331415296,1720363714317,155.24207177,0.00011199,2]
[331415297,1720363722344,1903.65279599,0.00011199,2]
[331415298,1720363735900,485.02,0.00010507,2]
[331415299,1720363746963,9243.00446491,0.00011199,2]
[331415300,1720363762124,9996.09667228,0.00011199,2]
[331415301,1720363765064,155.0,0.00011199,2]
[331415302,1720363767293,1071.49821396,0.00011199,2]
[331415303,1720363768840,960.15778522,0.00011199,2]
[331415304,1720363770493,315.96457783,0.00011199,2]
[331415305,1720363777237,-436.04707903,0.00012101,2]
[331415308,1720363779490,4248.33183863,0.00011199,2]
[331415309,1720363779532,364.54506613,0.00011199,2]
[331415310,1720363786320,2263.73302474,0.00011199,2]
[331415311,1720363788197,-537.13183362,0.00012101,2]
[331415312,1720363788222,-1829.1154,0.00012101,2]
[331415313,1720363788245,-446.118849,0.0001214,2]
[331415314,1720363788267,-681.0,0.000122,2]
[331415315,1720363788294,-9435.18166577,0.00012202,2]
[331415316,1720363788317,-277.37477835,0.00012273,2]
[331415317,1720363788342,-626.82827386,0.00012302,2]
[331415318,1720363788364,-1817.20672033,0.00012302,2]
[331415319,1720363788384,-216.52122073,0.00012314,2]
[331415320,1720363788407,-300.0,0.00012333,2]
[331415321,1720363788430,-1000.0,0.00012334,2]
[331415322,1720363788454,-250.0,0.000125,2]
[331415323,1720363788475,-150.0,0.00012521,2]
[331415324,1720363788504,-1081.18,0.00012527,2]
[331415325,1720363788529,-14352.34125834,0.00012549,2]
[331415326,1720363791938,2558.47984956,0.00011199,2]
[331415327,1720363792051,5602.87066756,0.00011199,2]
[331415328,1720363793880,348.7364024,0.00011199,2]
[331415330,1720363804385,150.0,0.00011199,2]
[331415331,1720363804444,150.0,0.00011199,2]
[331415332,1720363804495,150.0,0.00011199,2]
[331415333,1720363804547,150.0,0.00011199,2]
[331415334,1720363804799,150.0,0.00011199,2]
[331415335,1720363804963,150.0,0.00011199,2]
[331415336,1720363805098,150.0,0.00011199,2]
[331415337,1720363805271,150.0,0.00011199,2]
[331415338,1720363805463,150.0,0.00011199,2]
[331415339,1720363805642,150.0,0.00011199,2]
[331415340,1720363805856,0.19805698,0.00011199,2]
[331415341,1720363805941,149.80194302,0.00011199,2]
[331415342,1720363806058,150.0,0.00011199,2]
[331415343,1720363806497,150.0,0.00011199,2]
[331415344,1720363806727,150.0,0.00011199,2]
[331415345,1720363806895,150.0,0.00011199,2]
[331415346,1720363807137,150.0,0.00011199,2]
[331415347,1720363807407,150.0,0.00011199,2]
[331415348,1720363807649,158.88985679,0.00011199,2]
[331415349,1720363831852,-703.37788318,0.00012273,2]
[331415350,1720363832069,-530.865,0.00012273,2]
[331415351,1720363832083,-792.5901174,0.00012273,2]
[331415354,1720363832095,-178.1253726,0.00012273,2]
[331415356,1720363832104,-222.22403384,0.00012273,2]
[331415357,1720363832113,-49.65059356,0.00012486,2]
[331415359,1720363832124,-268.66656957,0.00012486,2]
[331415361,1720363832134,-279.0,0.00012548,2]
[331415363,1720363832144,-278.33342984,0.00012549,2]
[331415364,1720363832155,-472.53583505,0.00012549,2]
[331415365,1720363832166,-287.28843441,0.00012549,2]
[331415366,1720363832178,-4259.61070056,0.00012549,2]
[331415367,1720363832189,-4249.8903418,0.00012549,2]
[331415368,1720363832198,-250.0,0.00012553,2]
[331415369,1720363832207,-208.35,0.00012592,2]
[331415370,1720363832216,-160.36,0.00012622,2]
[331415371,1720363832226,-485.02,0.0001277,2]
[331415372,1720363832235,-169.01,0.00012791,2]
[331415373,1720363832245,-182.09,0.0001284,2]
[331415374,1720363832256,-499.99,0.00013016,2]
[331415375,1720363832268,-296.92,0.00013016,2]
[331415376,1720363832277,-239.64,0.00013102,2]
[331415377,1720363832287,-227.22563372,0.00013128,2]
[331415378,1720363832296,-533.36085656,0.00013128,2]
[331415379,1720363832305,-916.98899315,0.00013128,2]
[331415380,1720363832315,-3075.09742481,0.00013128,2]
[331415382,1720363832324,-356.38582122,0.00013128,2]
[331415384,1720363832333,-169.69966824,0.00013128,2]
[331415385,1720363832343,-7893.66864256,0.00013128,2]
[331415387,1720363832352,-201.42918999,0.00013472,2]
[331415388,1720363832361,-205.93837931,0.00013516,2]
[331415389,1720363832371,-756.75737183,0.00013574,2]
[331415390,1720363832380,-660.95341684,0.00013574,2]
[331415391,1720363832389,-315.96457783,0.00013574,2]
[331415392,1720363832399,-960.15778522,0.00013574,2]
[331415393,1720363832408,-315.96457783,0.00013574,2]
[331415394,1720363832417,-167.45232338,0.00013574,2]
[331415395,1720363832427,-177.63463609,0.00013574,2]
[331415396,1720363832436,-206.01562308,0.00013574,2]
[331415397,1720363832446,-455.71451529,0.00013574,2]
[331415398,1720363832456,-493.67846379,0.00013574,2]
[331415399,1720363832466,-1367.30728763,0.00013574,2]
[331415400,1720363832475,-8601.03583999,0.0001358,2]
[331415401,1720363832485,-287.56043544,0.00013581,2]
[331415402,1720363832498,-1154.86373683,0.00013581,2]
[331415403,1720363832510,-609.67999998,0.00013581,2]
[331415404,1720363832523,-9871.13066748,0.00013581,2]
[331415405,1720363832534,-463.05,0.00013581,2]
[331415406,1720363832545,-4864.80682774,0.00013581,2]
[331415407,1720363832557,-291.826501,0.00013581,2]
[331415408,1720363832652,-1500.0,0.00012302,2]
[331415409,1720363832662,-347.52985784,0.00013574,2]
[331415410,1720363832671,-1584.86753959,0.00013581,2]
[331415411,1720363832683,-537.7999143,0.00013581,2]
[331415412,1720363832694,-215.98098623,0.00013581,2]
[331415413,1720363832704,-245.12,0.00013699,2]
[331415414,1720363832713,-169.00127339,0.00013736,2]
[331415415,1720363832725,-1068.544472,0.00013736,2]
[331415416,1720363832736,-1974.8225,0.00013736,2]
[331415417,1720363832748,-9549.92313537,0.00013736,2]
[331415418,1720363832759,-2832.82435937,0.00013736,2]
[331415419,1720363832773,-209.75934926,0.00013746,2]
[331415420,1720363832783,-155.0,0.00013802,2]
[331415421,1720363832792,-2318.40855543,0.0001382,2]
[331415422,1720363832805,-681.59144457,0.0001382,2]
[331415423,1720363832814,-1779.22219,0.0001382,2]
[331415424,1720363832824,-725.12783216,0.0001382,2]
[331415432,1720363837912,-227.22563372,0.00012314,2]
[331415433,1720363837922,-3842.85734535,0.00013574,2]
[331415434,1720363837933,-537.22222227,0.00013574,2]
[331415435,1720363837947,-2877.65689904,0.00013574,2]
[331415436,1720363837957,-455.71451529,0.00013574,2]
[331415437,1720363837967,-2558.47984956,0.00013574,2]
[331415438,1720363837982,-1054.09434784,0.0001382,2]
[331415439,1720363837992,-1779.22218,0.0001382,2]
[331415440,1720363838003,-889.40303505,0.00013849,2]
[331415441,1720363838020,-758.11499998,0.00013849,2]
[331415442,1720363838031,-192.28288346,0.0001385,2]
[331415443,1720363838042,-1000.0,0.00013876,2]
[331415444,1720363838053,-13737.22287388,0.0001388,2]
[331415445,1720363838065,-13565.0,0.0001388,2]
[331415446,1720363838078,-15912.08223828,0.0001388,2]
[331415447,1720363838090,-500.0,0.00013888,2]
[331415448,1720363838099,-643.51311969,0.00013889,2]
[331415449,1720363838109,-195.55036284,0.00013899,2]
[331415450,1720363838118,-690.57146327,0.00013899,2]
[331415451,1720363838128,-166.703905,0.000139,2]
[331415452,1720363838138,-1323.96491456,0.000139,2]
[331415453,1720363838149,-1000.0,0.000139,2]
[331415454,1720363838162,-322.14623263,0.000139,2]
[331415455,1720363838171,-3000.0,0.0001396,2]
[331415456,1720363838182,-774.36811373,0.0001396,2]
[331415457,1720363838194,-2225.63188627,0.0001396,2]
[331415458,1720363838203,-3000.0,0.0001396,2]
[331415459,1720363838213,-3000.0,0.0001396,2]
[331415460,1720363838223,-1779.22218,0.0001396,2]
[331415461,1720363838233,-161.593069,0.00013974,2]
[331415462,1720363838243,-26437.46093063,0.00013989,2]
[331415463,1720363838255,-420.44579749,0.00013989,2]
[331415464,1720363838269,-1530.03477773,0.00013989,2]
[331415465,1720363838280,-1066.44897036,0.00013989,2]
[331415466,1720363838292,-3461.85400209,0.00013989,2]
[331415467,1720363838301,-1839.9652303,0.00013989,2]
[331415468,1720363838311,-366.20311967,0.00013989,2]
[331415469,1720363838320,-6247.7147513,0.00013989,2]
[331415470,1720363838330,-150.0,0.0001399,2]
[331415471,1720363838339,-9780.673693,0.0001399,2]
[331415476,1720363838382,-850.94665151,0.0001399,2]
[331415478,1720363838394,-381.33465368,0.0001399,2]
[331415480,1720363838405,-3340.59680603,0.0001399,2]
[331415483,1720363838417,-13195.32874798,0.0001399,2]
[331415484,1720363838427,-1539.9382023,0.0001399,2]
[331415487,1720363838438,-5302.7867491,0.0001399,2]
[331415488,1720363838449,-259.19136024,0.00013999,2]
[331415491,1720363838460,-500.0,0.00013999,2]
[331415493,1720363838471,-325.36772581,0.00013999,2]
[331415494,1720363838481,-300.02,0.00013999,2]
[331415497,1720363838491,-3195.56134739,0.00013999,2]
[331415499,1720363838502,-149.28478878,0.00013999,2]
[331415501,1720363838517,-17.21796676,0.00013999,2]
[331415503,1720363838527,-420.80156831,0.00013999,2]
[331415505,1720363838537,-990.0,0.00014,2]
[331415507,1720363838547,-10284.49671833,0.00014,2]
[331415511,1720363838578,-6191.8697304,0.00014,2]
[331415513,1720363838591,-2063.9565768,0.00014,2]
[331415514,1720363838603,-507.54424864,0.00014,2]
[331415626,1720363841743,-1347.55214813,0.00013574,2]
[331415627,1720363841753,-5174.67069294,0.00014,2]
[331415628,1720363841764,-353.436607,0.00014,2]
[331415641,1720363842964,-1705.43033063,0.00014,2]
[331415642,1720363843067,-573.47972674,0.00013574,2]
[331415643,1720363843079,-774.16607933,0.00013574,2]
[331415644,1720363843091,-14776.76182501,0.00014,2]
[331415645,1720363843103,-2563.842,0.00014,2]
[331415646,1720363843114,-448.09296257,0.00014,2]
[331415647,1720363843126,-490.8722703,0.00014,2]
[331415648,1720363843138,-608.0439137,0.00014,2]
[331415649,1720363843149,-355.72425126,0.00014,2]
[331415674,1720363846426,-277.7,0.00013574,2]
[331415677,1720363846438,-300.54790346,0.00013574,2]
[331415678,1720363846448,-13518.5787709,0.00013989,2]
[331415679,1720363846458,-11473.9778025,0.0001399,2]
[331415680,1720363846468,-1597.7806737,0.00013999,2]
[331415681,1720363846478,-166770.17686391,0.00014,2]
[331415682,1720363846492,-33002.7239765,0.00014,2]
[331415687,1720363940374,150.0,0.00011199,2]
[331415688,1720363940430,150.0,0.00011199,2]
[331415689,1720363940514,150.0,0.00011199,2]
[331415690,1720363940665,51692.96446656,0.00011199,2]
[331415692,1720364019777,150.0,0.00011199,2]
[331415693,1720364019801,150.0,0.00011199,2]
[331415694,1720364019856,150.0,0.00011199,2]
[331415695,1720364019879,150.0,0.00011199,2]
[331415696,1720364019904,150.0,0.00011199,2]
[331415697,1720364019931,150.0,0.00011199,2]
[331415698,1720364019971,150.0,0.00011199,2]
[331415699,1720364019995,30.0966781,0.00011199,2]
[331415700,1720364020643,150.0,0.00011199,2]
[331415701,1720364020672,150.0,0.00011199,2]
[331415702,1720364020696,150.0,0.00011199,2]
[331415703,1720364020751,150.0,0.00011199,2]
[331415704,1720364020775,150.0,0.00011199,2]
[331415705,1720364020798,150.0,0.00011199,2]
[331415706,1720364020822,150.0,0.00011199,2]
[331415707,1720364020847,150.0,0.00011199,2]
[331415708,1720364020879,150.0,0.00011199,2]
[331415709,1720364020904,150.0,0.00011199,2]
[331415710,1720364020936,287.47527683,0.00011199,2]
[331415711,1720364021078,150.0,0.00011199,2]
[331415712,1720364021230,150.0,0.00011199,2]
[331415713,1720364021383,150.0,0.00011199,2]
[331415714,1720364021524,150.0,0.00011199,2]
[331415715,1720364021547,150.0,0.00011199,2]
[331415716,1720364021570,150.0,0.00011199,2]
[331415717,1720364021600,145.34908254,0.00011199,2]
[331415720,1720364034645,150.0,0.00011199,2]
[331415721,1720364034672,150.0,0.00011199,2]
[331415722,1720364034696,150.0,0.00011199,2]
[331415723,1720364034721,150.0,0.00011199,2]
[331415724,1720364034748,150.0,0.00011199,2]
[331415725,1720364034771,150.0,0.00011199,2]
[331415726,1720364034796,150.0,0.00011199,2]
[331415727,1720364034821,279.55423936,0.00011199,2]
[331415728,1720364034846,67.22889887,0.00011199,2]
[331415729,1720364059740,1514.95803162,0.00011199,2]
[331415732,1720364082312,889.40303505,0.00011199,2]
[331415733,1720364095173,1454.96898322,0.00011199,2]
[331415734,1720364099644,2882.17637764,0.00011199,2]
[331415735,1720364102214,1375.91484363,0.00011199,2]
[331415736,1720364103445,600.0,0.00011199,2]
[331415738,1720364111701,1265.01058332,0.00011199,2]
[331415739,1720364138694,1422.8636011,0.00011199,2]
[331415740,1720364152005,1071.49821396,0.00011199,2]
[331415741,1720364213300,3732.42,0.00011199,2]
[331415742,1720364215216,627.12487314,0.00011199,2]
[331415743,1720364219873,625.93982727,0.00011199,2]
[331415744,1720364229236,276.15184313,0.00011199,2]
[331415746,1720364242213,524.03925994,0.00011199,2]
[331415747,1720364250871,315.96457783,0.00011199,2]
[331415748,1720364265228,324.61650583,0.00011199,2]
[331415749,1720364281114,213.90304588,0.00011199,2]
[331415750,1720364301522,165.86862389,0.00011199,2]
[331415751,1720364302653,1770.07114983,0.00011199,2]
[331415752,1720364312363,227.22563372,0.00011199,2]
[331415754,1720364386602,10994.48154505,0.00011199,2]
[331415755,1720364398370,436.51,0.00010749,2]
[331415756,1720364418465,1225.15243146,0.00011199,2]
[331415757,1720364425731,1780.84432839,0.00011199,2]
[331415758,1720364476356,150.0,0.00011199,2]
[331415759,1720364476870,150.0,0.00011199,2]
[331415760,1720364476902,150.0,0.00011199,2]
[331415761,1720364476927,146.62532006,0.00011199,2]
[331415762,1720364519381,150.0,0.00011199,2]
[331415763,1720364519407,150.0,0.00011199,2]
[331415764,1720364519432,150.0,0.00011199,2]
[331415765,1720364519456,150.0,0.00011199,2]
[331415766,1720364519479,69.12331295,0.00011199,2]
[331415767,1720364524402,644.51027312,0.00011199,2]
[331415769,1720364563955,150.0,0.00011199,2]
[331415770,1720364563978,292.65618734,0.00011199,2]
[331415771,1720364563999,280.89618018,0.00011199,2]
[331415772,1720364587078,226.20287244,0.00011199,2]
[331415773,1720364591927,691.4628542,0.00011199,2]
[331415775,1720364597700,2000.0,0.000156,30]
[331415776,1720364597820,2000.0,0.0001561,30]
[331415777,1720364597931,2000.0,0.0001562,30]
[331415778,1720364598008,3289.428121,0.0001563,30]
[331415779,1720364615016,172.94473413,0.00011199,2]
[331415780,1720364615038,10821.53681092,0.00011199,2]
[331415781,1720364649956,626.02811138,0.00011199,2]
[331415782,1720364652036,188.60841401,0.00011199,2]
[331415783,1720364653716,275.56259237,0.00011199,2]
[331415785,1720364737859,155.0,0.00011199,2]
[331415787,1720364745402,385.38086979,0.00011199,2]
[331415788,1720364757016,159.10088366,0.00011199,2]
[331415789,1720364796951,227.22563372,0.00011199,2]
[331415792,1720364848786,1563.54436773,0.00011199,2]
[331415793,1720364852560,9086.98943389,0.00011199,2]
[331415795,1720364898813,19606.28873825,0.00011199,2]
[331415797,1720364941029,-701.0,0.00012072,2]
[331415799,1720364941075,-281.8112595,0.00012073,2]
[331415810,1720365026961,414.68,0.0001067,2]
[331415811,1720365029625,1500.0,0.000142,30]
[331415812,1720365032005,-16.15911008,0.00012073,2]
[331415815,1720365032015,-1280.82234839,0.00012173,2]
[331415823,1720365032114,-492.30925161,0.00012173,2]
[331415824,1720365032127,-52.84133042,0.00012302,2]
[331415825,1720365032289,-303.42583183,0.00012302,2]
[331415826,1720365032299,-10.14521883,0.0001253,2]
[331415827,1720365032312,-209.85478117,0.0001253,2]
[331415828,1720365032322,-15203.61,0.00012531,2]
[331415829,1720365032331,-3671.83,0.00012587,2]
[331415830,1720365032341,-191.71,0.0001259,2]
[331415831,1720365032350,-250.0,0.00012599,2]
[331415832,1720365032360,-250.0,0.00012609,2]
[331415833,1720365032372,-150.0,0.00012613,2]
[331415834,1720365032382,-600.0,0.00012671,2]
[331415835,1720365032391,-2015.86,0.00012671,2]
[331415836,1720365032403,-12847.37,0.00012743,2]
[331415837,1720365032417,-400.0,0.00012788,2]
[331415838,1720365032427,-414.68,0.00012934,2]
[331415839,1720365032437,-200.0,0.00012976,2]
[331415840,1720365032447,-155.0,0.00013128,2]
[331415841,1720365032457,-435.4959297,0.00013128,2]
[331415842,1720365032467,-227.22563372,0.00013472,2]
[331415843,1720365032476,-155.14898173,0.00013472,2]
[331415844,1720365032486,-176.52771094,0.00013516,2]
[331415845,1720365032497,-888.54230009,0.00013574,2]
[331415846,1720365032507,-658.75492026,0.00013574,2]
[331415847,1720365032517,-150.0,0.00013671,2]
[331415848,1720365032526,-307.27,0.00013699,2]
[331415849,1720365032536,-1000.0,0.000137,2]
[331415850,1720365032546,-14284.0,0.00013721,2]
[331415851,1720365032555,-150.0,0.00013792,2]
[331415852,1720365032564,-150.0,0.00013799,2]
[331415853,1720365032573,-619.0,0.000138,2]
[331415854,1720365032583,-449.0,0.000138,2]
[331415855,1720365032592,-1305.0,0.000138,2]
[331415856,1720365032602,-2376.0,0.000138,2]
[331415857,1720365032612,-1989.0,0.000138,2]
[331415858,1720365032623,-548.0,0.000138,2]